bitfinex-derivatives/quotes_SOLF0:USTF0_20251222
["timestamp","ask_amount","ask_price","bid_price","bid_amount"]
[1766434715433,0.05514013,124.56,124.49,94.9]
[1766434716220,7.28374013,124.56,124.51,0.06054866]
[1766434716427,0.05514013,124.56,124.51,0.06054866]
[1766434717827,6.70821005,124.56,124.51,0.06054866]
[1766434718334,6.70821005,124.56,124.47,98.38]
[1766434718533,13.88176992,124.56,124.47,98.38]
[1766434719231,0.05337296,124.53,124.5,0.05174417]
[1766434720730,7.2273,124.58,124.5,0.05174417]
[1766434720932,7.2273,124.58,124.48,3.5]
[1766434721724,6.65306992,124.59,124.48,3.5]
[1766434722034,6.65306992,124.59,124.52,0.05370579]
[1766434722228,7.2263,124.6,124.52,3.55370579]
[1766434722427,7.2263,124.6,124.52,3.5]
[1766434722738,7.2263,124.6,124.52,98.38]
[1766434723124,0.0584549,124.57,124.55,0.05840832]
[1766434726939,0.0584549,124.57,124.49,98.36]
[1766434727248,7.2285,124.56,124.49,3.5]
[1766434727838,7.2275,124.58,124.49,3.5]
[1766434728039,0.05700769,124.54,124.51,0.05413004]
[1766434728348,0.05700769,124.54,124.51,0.05355166]
[1766434730345,0.05700769,124.54,124.46,3.5]
[1766434730545,119.09706992,124.56,124.46,3.5]
[1766434731240,0.05445445,124.52,124.5,0.0548162]
[1766434734148,0.00445445,124.52,124.5,0.0548162]
[1766434738555,24.02,124.6,124.5,3.5548162]
[1766434738556,101.51306992,124.59,124.5,3.5548162]
[1766434738754,101.51306992,124.59,124.5,3.5]
[1766434739543,0.05144577,124.56,124.53,0.05289352]
[1766434741144,0.05144577,124.56,124.4,347.61392066]
[1766434741145,0.05144577,124.56,124.47,3.5]
[1766434741346,0.05144577,124.56,124.4,112.5763]
[1766434741347,112.4771,124.52,124.44,3.5]
[1766434741550,112.4771,124.52,124.38,112.5955]
[1766434741551,7.2325,124.49,124.41,105.5969]
[1766434741751,242.12327113,124.54,124.42,3.5]
[1766434742059,218.10327113,124.54,124.42,3.5]
[1766434742251,0.05171849,124.49,124.47,0.06063647]
[1766434742556,0.05673263,124.49,124.47,0.06063647]
[1766434744351,7.2299,124.54,124.47,3.56063647]
[1766434744552,10.78197113,124.57,124.47,3.56063647]
[1766434744553,123.21737113,124.57,124.47,3.56063647]
[1766434744753,112.45,124.55,124.44,3.5]
[1766434745451,112.45,124.55,124.41,3.5]
[1766434745452,0.06111248,124.51,124.41,3.5]
[1766434745655,112.482,124.52,124.41,3.5]
[1766434746063,7.2323,124.49,124.41,10.7369]
[1766434746459,0.0592236,124.46,124.44,0.06082601]
[1766434747358,7.2319,124.5,124.44,0.06082601]
[1766434747558,123.26997113,124.51,124.44,0.06082601]
[1766434748061,112.5048,124.49,124.44,0.00082601]
[1766434748257,112.5048,124.49,124.38,98.17]
[1766434748658,7.2336,124.47,124.39,3.29]
[1766434749360,0.05132285,124.44,124.42,0.00145074]
[1766434749963,94.88,124.5,124.42,0.00145074]
[1766434750150,94.88,124.5,124.4,3.29]
[1766434750554,7.2334,124.48,124.4,3.29]
[1766434750860,0.06035637,124.45,124.43,0.0596622]
[1766434752954,1.6,124.44,124.36,3.29]
[1766434753153,112.55,124.44,124.33,3.29]
[1766434754159,0.05537508,124.4,124.37,0.0549388]
[1766434754558,10.78197113,124.46,124.37,0.0549388]
[1766434754767,7.2348,124.45,124.36,7.2397]
[1766434755166,123.31517113,124.46,124.35,3.29]
[1766434755371,7.2355,124.44,124.35,10.5303]
[1766434755666,0.05803814,124.41,124.38,0.0550716]
[1766434756370,0.05803814,124.41,124.32,112.6548]
[1766434756371,0.05803814,124.41,124.32,3.29]
[1766434756570,0.05803814,124.41,124.29,98.19]
[1766434756571,112.5769,124.41,124.29,98.19]
[1766434757267,0.0595889,124.36,124.34,0.0550257]
[1766434757577,10.78197113,124.43,124.32,3.29]
[1766434758571,0.05253129,124.39,124.36,0.05736479]
[1766434758765,0.05253129,124.39,124.33,7.2414]
[1766434759672,105.70197113,124.48,124.36,115.9095]
[1766434759972,105.70197113,124.48,124.39,3.29]
[1766434759973,94.92,124.48,124.39,3.29]
[1766434760666,94.92,124.48,124.38,112.6014]
[1766434760667,0.06078931,124.45,124.42,0.00492879]
[1766434762778,0.00078931,124.45,124.42,0.00492879]
[1766434762978,94.94,124.5,124.42,3.29492879]
[1766434763178,10.78197113,124.54,124.42,3.29]
[1766434763473,7.2311,124.52,124.44,3.29]
[1766434763866,7.2311,124.52,124.42,94.94]
[1766434763867,112.4768,124.52,124.42,94.94]
[1766434764075,0.05898401,124.48,124.46,0.05376918]
[1766434764275,0.05703024,124.48,124.46,0.05376918]
[1766434765772,0.05703024,124.48,124.42,3.29]
[1766434765967,94.94,124.54,124.42,3.29]
[1766434766167,112.4459,124.56,124.44,3.29]
[1766434766369,7.2302,124.53,124.45,105.4444]
[1766434766972,0.05651142,124.5,124.48,0.05540159]
[1766434767175,7.2308,124.52,124.45,3.29]
[1766434767376,0.05178592,124.5,124.48,0.05426869]
[1766434767575,112.4396,124.57,124.48,0.05426869]
[1766434767883,112.4396,124.57,124.45,3.29]
[1766434768082,239.245,124.61,124.47,3.29]
[1766434768083,7.2287,124.56,124.47,3.29]
[1766434768381,94.92,124.58,124.48,3.29]
[1766434768572,0.05783135,124.54,124.52,0.05162307]
[1766434769882,94.92,124.58,124.52,0.05162307]
[1766434770178,7.2268,124.59,124.52,0.05162307]
[1766434770381,235.57537113,124.61,124.52,0.05162307]
[1766434770578,112.4235,124.58,124.5,3.41]
[1766434770782,112.4235,124.58,124.48,94.9]
[1766434770988,0.05967363,124.54,124.52,0.05272123]
[1766434772078,0.05967363,124.54,124.47,3.41]
[1766434772676,0.05967363,124.54,124.47,10.6433]
[1766434773182,0.05967363,124.54,124.49,0.05252237]
[1766434778192,7.28927363,124.54,124.49,0.05252237]
[1766434779078,7.2303,124.53,124.49,0.05252237]
[1766434779274,112.52437363,124.54,124.49,0.05252237]
[1766434779489,112.4721,124.53,124.44,98.4]
[1766434779882,7.2313,124.51,124.45,3.52]
[1766434780188,112.4647,124.54,124.45,3.52]
[1766434780388,7.2304,124.53,124.45,3.52]
[1766434780590,0.05949364,124.51,124.48,0.06180752]
[1766434784690,94.9,124.57,124.48,3.58180752]
[1766434784994,94.9,124.57,124.48,3.52]
[1766434785191,7.229,124.55,124.48,3.52]
[1766434785602,0.06095788,124.53,124.5,0.05453402]
[1766434786797,0.00095788,124.53,124.5,3.57453402]
[1766434787098,94.9,124.57,124.5,3.57453402]
[1766434787991,10.78197113,124.6,124.5,3.57453402]
[1766434788300,0.05078139,124.56,124.54,0.05420722]
[1766434788500,0.05500127,124.56,124.54,0.05679636]
[1766434788987,112.3621,124.65,124.54,3.57679636]
[1766434789187,10.78197113,124.66,124.55,3.52]
[1766434789385,112.3365,124.68,124.55,3.52]
[1766434789386,207.2165,124.68,124.56,3.52]
[1766434790100,112.356,124.66,124.56,3.52]
[1766434790303,123.13797113,124.66,124.56,3.52]
[1766434791000,0.05360495,124.62,124.54,94.86]
[1766434791199,112.3788,124.63,124.54,94.86]
[1766434791799,7.2252,124.62,124.54,94.86]
[1766434792185,0.06040102,124.59,124.57,0.06111962]
[1766434792388,94.86,124.63,124.57,0.06111962]
[1766434793500,0.05189984,124.61,124.57,0.06111962]
[1766434795708,7.27739984,124.61,124.57,0.06111962]
[1766434796200,112.354,124.66,124.57,0.06111962]
[1766434796201,112.354,124.66,124.57,3.58111962]
[1766434796499,112.354,124.66,124.57,3.52]
[1766434797090,112.354,124.66,124.6,0.06095023]
[1766434797290,112.3606,124.65,124.6,0.06095023]
[1766434798099,112.354,124.66,124.6,0.06095023]
[1766434798692,112.354,124.66,124.6,3.58095023]
[1766434798894,112.3293,124.69,124.6,3.58095023]
[1766434799089,112.3293,124.69,124.63,0.05646773]
[1766434799290,112.3436,124.67,124.63,0.05646773]
[1766434799593,112.3511,124.66,124.63,0.05646773]
[1766434800298,112.333,124.68,124.63,0.05646773]
[1766434800602,112.3293,124.69,124.63,0.05646773]
[1766434800799,7.2232,124.65,124.63,0.05646773]
[1766434801097,7.2232,124.65,124.56,7.2279]
[1766434801098,112.3617,124.65,124.57,3.52]
[1766434801690,7.2243,124.63,124.57,3.52]
[1766434802000,0.06050691,124.61,124.59,0.05781395]
[1766434803888,0.06050691,124.61,124.54,3.52]
[1766434804203,7.2251,124.62,124.54,3.52]
[1766434804999,0.05550894,124.59,124.57,0.05493139]
[1766434805397,0.05550894,124.59,124.51,3.52]
[1766434805601,6.62699172,124.6,124.51,3.52]
[1766434805797,13.85349172,124.6,124.51,3.52]
[1766434806605,0.05140413,124.57,124.54,0.06024226]
[1766434813504,13.85209172,124.62,124.54,10.78964226]
[1766434813704,6.62699172,124.62,124.54,10.7294]
[1766434813900,7.2262,124.6,124.51,3.5]
[1766434814099,119.01909172,124.62,124.52,10.7301]
[1766434814296,0.05774819,124.58,124.56,0.05336776]
[1766434814496,6.62699172,124.62,124.56,0.05336776]
[1766434815499,0.05661528,124.6,124.56,0.05336776]
[1766434817303,7.28361528,124.6,124.56,0.05336776]
[1766434817508,0.05661528,124.6,124.56,0.05336776]
[1766434818915,7.2273,124.59,124.56,0.05336776]
[1766434819114,0.05661528,124.6,124.56,0.05336776]
[1766434819315,0.05661528,124.6,124.52,3.5]
[1766434819513,6.62699172,124.59,124.52,3.5]
[1766434820417,0.05491905,124.57,124.54,0.05731427]
[1766434820613,0.05491905,124.57,124.49,3.5]
[1766434820807,119.05579172,124.59,124.49,3.5]
[1766434821618,0.05691702,124.55,124.53,0.05372257]
[1766434822022,0.05691702,124.55,124.49,10.733]
[1766434823128,0.05691702,124.55,124.51,0.05631087]
[1766434823630,7.28671702,124.55,124.51,0.05631087]
[1766434824725,0.05691702,124.55,124.51,0.05631087]
[1766434827123,0.05691702,124.55,124.47,94.82]
[1766434827324,6.62699172,124.56,124.47,94.82]
[1766434827524,7.2302,124.54,124.47,105.5542]
[1766434828233,0.05632417,124.52,124.49,0.05903507]
[1766434833240,7.2305,124.54,124.49,3.26903507]
[1766434834134,2.47757407,124.55,124.49,3.26903507]
[1766434834329,0.05652427,124.53,124.49,3.26903507]
[1766434834926,2.47757407,124.59,124.5,3.21]
[1766434835334,9.70597407,124.57,124.5,10.4424]
[1766434835639,2.47757407,124.57,124.5,3.21]
[1766434835838,0.06119274,124.55,124.52,0.05189868]
[1766434836341,0.00119274,124.55,124.53,10.4306]
[1766434836543,2.47757407,124.6,124.53,3.2]
[1766434837235,97.33757407,124.62,124.55,10.4295]
[1766434837436,0.05963177,124.6,124.57,0.05836199]
[1766434837639,2.47757407,124.62,124.57,3.25836199]
[1766434838029,101.48771579,124.66,124.57,3.25836199]
[1766434838328,7.2244,124.64,124.57,3.2]
[1766434838638,213.85161579,124.66,124.57,3.2]
[1766434838842,0.05329834,124.62,124.59,0.05305493]
[1766434852756,0.05329834,124.62,124.59,3.25305493]
[1766434854354,0.05329834,124.62,124.59,0.05305493]
[1766434855555,7.27889834,124.62,124.59,0.05305493]
[1766434857954,0.05329834,124.62,124.59,0.05305493]
[1766434858252,0.00329834,124.62,124.59,3.25305493]
[1766434859254,0.00329834,124.62,124.59,0.05305493]
[1766434861655,2.47450487,124.61,124.59,0.05305493]
[1766434861955,7.22889834,124.62,124.55,3.2]
[1766434861956,3.87100719,124.62,124.55,3.2]
[1766434862259,3.86770885,124.62,124.55,3.2]
[1766434862754,3.86770885,124.58,124.52,3.2]
[1766434862959,0.05266352,124.56,124.54,0.05691797]
[1766434863264,0.05266352,124.56,124.52,3.2]
[1766434864051,3.92037237,124.56,124.48,94.8]
[1766434864256,3.86770885,124.56,124.53,0.05088503]
[1766434864455,3.86770885,124.56,124.48,94.8]
[1766434865055,3.86770885,124.56,124.46,207.3402]
[1766434865448,0.05560108,124.52,124.5,0.05415981]
[1766434867060,0.05560108,124.52,124.46,98.25]
[1766434867250,0.05560108,124.52,124.47,3.45]
[1766434868262,3.92330993,124.52,124.48,0.05617521]
[1766434868571,3.92330993,124.52,124.39,116.46630885]
[1766434868572,3.86770885,124.5,124.39,3.45]
[1766434868746,11.10060885,124.5,124.4,3.45]
[1766434869456,0.05838351,124.46,124.44,0.06179036]
[1766434869963,3.86770885,124.5,124.44,0.06179036]
[1766434870160,3.86770885,124.5,124.44,3.51179036]
[1766434870853,3.86770885,124.52,124.44,3.51179036]
[1766434871052,0.05614007,124.49,124.47,0.051506]
[1766434872860,0.05614007,124.49,124.41,3.45]
[1766434873059,3.86770885,124.48,124.41,3.45]
[1766434873861,0.05645741,124.46,124.43,0.05428912]
[1766434874055,3.92416626,124.46,124.38,3.45]
[1766434874263,3.86770885,124.46,124.38,3.45]
[1766434875163,0.05190319,124.43,124.41,0.05872424]
[1766434875957,0.05190319,124.43,124.38,3.45]
[1766434877067,112.5002,124.51,124.4,3.45]
[1766434877381,10.80338718,124.52,124.42,3.45]
[1766434877663,7.2323,124.51,124.44,3.45]
[1766434877864,0.05434918,124.49,124.46,0.05660642]
[1766434879568,7.28774918,124.49,124.46,0.05660642]
[1766434880264,0.05434918,124.49,124.46,0.05660642]
[1766434880465,0.05434918,124.49,124.43,3.45]
[1766434881569,0.05434918,124.49,124.45,0.05517146]
[1766434883374,0.05434918,124.49,124.45,3.50517146]
[1766434883575,112.4616,124.55,124.47,3.45]
[1766434883773,112.4642,124.55,124.47,3.45]
[1766434883967,7.2308,124.53,124.47,3.45]
[1766434884176,123.24708718,124.57,124.47,3.45]
[1766434884475,0.05586327,124.53,124.51,0.05700559]
[1766434884774,0.05586327,124.53,124.47,3.45]
[1766434884972,0.05586327,124.53,124.47,10.684]
[1766434885162,0.05586327,124.53,124.47,3.45]
[1766434885568,0.05586327,124.53,124.49,0.05375498]
[1766434890185,7.28666327,124.53,124.49,0.05375498]
[1766434890868,7.2314,124.52,124.49,0.00375498]
[1766434891270,0.05586327,124.53,124.49,0.00375498]
[1766434891476,7.28666327,124.53,124.49,0.00375498]
[1766434892979,7.2316,124.52,124.49,0.00375498]
[1766434893371,7.2316,124.52,124.45,7.2352]
[1766434894281,0.05369659,124.5,124.47,0.05612328]
[1766434895477,0.05369659,124.5,124.42,3.28]
[1766434895682,207.382,124.53,124.42,27.24476627]
[1766434895879,231.482,124.53,124.43,3.5]
[1766434896083,7.2324,124.51,124.45,3.5]
[1766434896478,0.05256425,124.49,124.47,0.05620316]
[1766434897176,0.00256425,124.49,124.47,3.55620316]
[1766434904187,0.00256425,124.49,124.47,10.79040316]
[1766434904578,3.87396185,124.58,124.47,3.55620316]
[1766434904784,3.87396185,124.58,124.47,3.5]
[1766434905790,0.05931315,124.54,124.51,0.05229673]
[1766434910086,0.05931315,124.54,124.51,10.78419673]
[1766434910590,3.87396185,124.58,124.51,3.55229673]
[1766434910786,3.87396185,124.58,124.52,10.7313]
[1766434911388,0.05563737,124.56,124.54,0.05076169]
[1766434914890,94.9,124.59,124.54,0.05076169]
[1766434915091,3.87396185,124.6,124.54,3.55076169]
[1766434915286,3.87396185,124.62,124.54,3.55076169]
[1766434915598,3.87396185,124.62,124.54,3.5]
[1766434915995,0.05661002,124.59,124.57,0.05700389]
[1766434917185,98.73396185,124.63,124.57,0.05700389]
[1766434917792,105.95906185,124.63,124.57,0.05700389]
[1766434917988,98.73396185,124.63,124.57,3.55700389]
[1766434918192,0.05462845,124.61,124.57,3.55700389]
[1766434919399,0.05462845,124.61,124.57,10.78520389]
[1766434919704,0.00462845,124.61,124.58,3.5]
[1766434920295,3.87396185,124.68,124.6,3.5]
[1766434920597,138.59529371,124.75,124.65,3.5]
[1766434920598,3.87396185,124.72,124.65,3.5]
[1766434920802,11.09296185,124.74,124.67,3.5]
[1766434921404,0.05944217,124.72,124.69,0.06147152]
[1766434921600,3.87396185,124.7,124.61,3.5]
[1766434921800,3.87396185,124.68,124.61,3.5]
[1766434922705,0.05962848,124.66,124.63,0.05299542]
[1766434923396,3.87396185,124.68,124.63,0.05299542]
[1766434923592,7.2212,124.7,124.63,0.05299542]
[1766434923593,11.09516185,124.7,124.63,3.55299542]
[1766434923801,3.87396185,124.68,124.63,3.55299542]
[1766434924001,2.4731517,124.66,124.63,3.5]
[1766434924506,7.2203,124.71,124.63,3.55234533]
[1766434924701,2.4731517,124.69,124.63,3.5]
[1766434925597,0.0609996,124.67,124.65,0.05816561]
[1766434925798,0.0609996,124.67,124.59,3.42]
[1766434925799,2.5341513,124.67,124.59,3.42]
[1766434925998,2.4731517,124.67,124.6,3.42]
[1766434926402,2.4731517,124.65,124.6,3.42]
[1766434926801,0.05646098,124.64,124.61,0.05483133]
[1766434927398,2.4731517,124.63,124.57,3.42]
[1766434927605,2.4731517,124.61,124.53,3.42]
[1766434927809,2.4731517,124.59,124.54,3.42]
[1766434928501,2.4731517,124.59,124.55,0.05830809]
[1766434929102,2.4731517,124.59,124.55,3.47830809]
[1766434929612,0.00113028,124.58,124.55,3.47830809]
[1766434930109,2.4731517,124.6,124.55,3.47830809]
[1766434930310,126.7854,124.69,124.55,3.47830809]
[1766434930510,2.4731517,124.61,124.55,3.42]
[1766434931110,0.00480429,124.59,124.57,0.05566681]
[1766434932910,2.4731517,124.62,124.57,3.47566681]
[1766434933104,2.4731517,124.63,124.57,3.42]
[1766434934117,0.05219657,124.61,124.59,0.05325174]
[1766434936109,2.4731517,124.66,124.59,3.47325174]
[1766434936312,2.4731517,124.66,124.59,3.42]
[1766434937212,0.05107728,124.64,124.61,0.05240767]
[1766434937729,2.52422898,124.64,124.61,0.05240767]
[1766434939213,9.74872898,124.64,124.61,0.05240767]
[1766434939611,7.27557728,124.64,124.61,0.05240767]
[1766434944227,9.6981517,124.63,124.57,98.2]
[1766434944628,2.4731517,124.61,124.55,3.42]
[1766434944828,2.4731517,124.59,124.51,3.42]
[1766434945020,2.4731517,124.57,124.5,3.42]
[1766434945229,0.05493771,124.55,124.52,0.05460882]
[1766434945420,2.52808941,124.55,124.52,0.05460882]
[1766434946319,9.75768941,124.55,124.52,0.05460882]
[1766434946928,2.4731517,124.53,124.47,3.42]
[1766434948129,0.05977889,124.51,124.49,0.05650133]
[1766434948926,112.4566,124.56,124.49,0.05650133]
[1766434949933,0.05477599,124.54,124.49,0.05650133]
[1766434950236,7.28537599,124.54,124.49,0.05650133]
[1766434950826,0.05477599,124.54,124.49,3.51650133]
[1766434953227,7.28507599,124.54,124.49,3.51650133]
[1766434954031,7.28507599,124.54,124.49,0.05650133]
[1766434954234,7.2309,124.53,124.49,0.05650133]
[1766434954536,0.05477599,124.54,124.49,0.05650133]
[1766434954837,7.2315,124.52,124.49,0.05650133]
[1766434955633,0.05477599,124.54,124.43,98.06]
[1766434955634,7.2322,124.51,124.43,98.06]
[1766434955830,7.2322,124.51,124.44,3.24]
[1766434956637,0.05534039,124.49,124.46,0.05369198]
[1766434961544,207.3032,124.55,124.46,3.29369198]
[1766434961744,207.3032,124.55,124.46,3.24]
[1766434962137,7.2315,124.52,124.46,3.24]
[1766434962338,119.1180623,124.53,124.43,3.24]
[1766434962543,0.06148259,124.49,124.47,0.0565898]
[1766434963950,7.29458259,124.49,124.47,0.0565898]
[1766434964752,0.06148259,124.49,124.47,0.0565898]
[1766434967354,0.00148259,124.49,124.47,0.0565898]
[1766434967955,7.23458259,124.49,124.46,8.98e-05]
[1766434968459,2.48048017,124.49,124.4,2.47899758]
[1766434968659,7.2343,124.47,124.4,104.57689758]
[1766434969160,7.2343,124.47,124.42,0.05892988]
[1766434969356,2.47899758,124.49,124.42,0.05892988]
[1766434969563,7.2348,124.46,124.42,0.05892988]
[1766434970066,0.04077809,124.45,124.42,0.05892988]
[1766434972866,0.04077809,124.45,124.42,3.29892988]
[1766434973159,7.2336,124.49,124.42,3.29892988]
[1766434973360,6.64423387,124.51,124.42,3.29892988]
[1766434973670,6.64423387,124.51,124.42,3.24]
[1766434974260,6.64423387,124.51,124.45,0.05766775]
[1766434974453,6.64423387,124.51,124.42,3.24]
[1766434974659,119.14403387,124.51,124.42,3.24]
[1766434975563,0.05766776,124.48,124.45,0.05330659]
[1766434977367,7.29136776,124.48,124.45,0.05330659]
[1766434977664,0.05766776,124.48,124.45,0.05330659]
[1766434979862,7.29136776,124.48,124.45,0.05330659]
[1766434980264,0.05766776,124.48,124.45,0.05330659]
[1766434980871,94.9,124.52,124.45,0.05330659]
[1766434980872,94.9,124.52,124.45,3.29330659]
[1766434982368,7.2325,124.5,124.45,3.29330659]
[1766434982572,207.3908,124.52,124.45,3.29330659]
[1766434983069,7.2325,124.51,124.45,3.29330659]
[1766434984761,94.9,124.52,124.45,3.29330659]
[1766434984966,94.9,124.52,124.46,3.24]
[1766434985167,94.9,124.52,124.48,0.05272911]
[1766434986776,102.1315,124.52,124.48,0.05272911]
[1766434986971,24.1,124.55,124.48,3.29272911]
[1766434987171,7.2299,124.55,124.48,3.29272911]
[1766434987573,94.9,124.56,124.49,10.473]
[1766434987775,94.9,124.56,124.51,0.05705718]
[1766434988284,10.79062148,124.62,124.52,3.24]
[1766434988464,118.17767537,124.61,124.56,0.00337921]
[1766434988770,94.9,124.6,124.56,0.00337921]
[1766434989166,123.16362148,124.65,124.56,0.00337921]
[1766434989368,107.90484805,124.64,124.54,3.24]
[1766434989581,0.05,124.62,124.59,0.05858208]
[1766434990081,0.05,124.62,124.53,3.24]
[1766434990376,112.3955,124.63,124.53,3.24]
[1766434990769,7.2257,124.62,124.53,10.4704]
[1766434991065,0.0518184,124.59,124.56,0.05090899]
[1766434991772,0.0018184,124.59,124.56,3.29090899]
[1766434992770,0.0018184,124.59,124.56,0.05090899]
[1766434992972,94.9,124.64,124.56,3.29090899]
[1766434993282,94.9,124.64,124.56,3.24]
[1766434993967,7.2251,124.63,124.56,10.4689]
[1766434994167,7.2251,124.63,124.59,0.05404088]
[1766434994168,0.05289872,124.61,124.59,0.05404088]
[1766434994565,0.05289872,124.61,124.59,0.00404088]
[1766434995879,7.27939872,124.61,124.54,94.86]
[1766434996071,0.05289872,124.61,124.54,94.86]
[1766434996981,0.05289872,124.61,124.56,0.05733971]
[1766434997680,7.2268,124.6,124.56,0.05733971]
[1766435000086,7.2274,124.59,124.51,3.24]
[1766435001176,0.00439062,124.56,124.54,0.05242065]
[1766435001480,0.00439062,124.56,124.54,3.29242065]
[1766435002870,94.9,124.64,124.54,4.89242065]
[1766435003078,94.9,124.64,124.55,3.24]
[1766435003277,7.2256,124.62,124.56,3.24]
[1766435003678,94.9,124.64,124.56,3.24]
[1766435003874,94.9,124.64,124.59,0.057099]
[1766435004088,7.2251,124.63,124.59,0.057099]
[1766435004988,0.05415857,124.62,124.59,0.057099]
[1766435007074,7.2243,124.65,124.59,3.297099]
[1766435007279,7.2243,124.65,124.59,3.24]
[1766435008188,112.3646,124.66,124.61,0.06027939]
[1766435008388,0.06,124.65,124.56,3.24]
[1766435008582,112.3646,124.66,124.56,3.24]
[1766435009084,14.4429,124.7,124.59,3.24]
[1766435009085,112.7897,124.69,124.59,3.24]
[1766435009281,0.4524,124.69,124.59,3.24]
[1766435009481,0.05103417,124.65,124.63,0.05145253]
[1766435010391,0.4524,124.69,124.63,0.05145253]
[1766435011692,7.6739,124.69,124.63,0.05145253]
[1766435013893,0.4524,124.69,124.63,7.27635253]
[1766435014393,0.4524,124.69,124.63,0.05145253]
[1766435015380,7.674,124.69,124.63,0.05145253]
[1766435016095,7.2222,124.68,124.63,0.05145253]
[1766435017196,7.2222,124.68,124.6,102.0262]
[1766435017197,3.8626067,124.66,124.57,3.19]
[1766435018090,98.6626067,124.68,124.58,3.19]
[1766435018290,0.05308345,124.64,124.62,0.05916223]
[1766435022094,7.27748345,124.64,124.58,3.19]
[1766435022290,3.91569015,124.64,124.56,105.1984]
[1766435022597,3.8626067,124.64,124.56,105.1984]
[1766435023097,0.05972108,124.61,124.59,0.06149661]
[1766435025098,7.2268,124.6,124.55,3.19]
[1766435025303,3.8626067,124.62,124.55,3.19]
[1766435025495,3.8626067,124.62,124.53,7.2307]
[1766435025696,3.8626067,124.62,124.53,10.4207]
[1766435026207,0.05639318,124.59,124.56,0.06174001]
[1766435029810,7.28369318,124.59,124.56,0.06174001]
[1766435031701,7.228,124.58,124.56,0.06174001]
[1766435031907,7.228,124.58,124.53,3.19]
[1766435032905,7.228,124.58,124.54,0.06067193]
[1766435033413,0.05639318,124.59,124.54,0.06067193]
[1766435036113,7.28369318,124.59,124.54,0.06067193]
[1766435037502,0.05639318,124.59,124.54,7.29077193]
[1766435037708,0.05639318,124.59,124.54,10.48077193]
[1766435038011,0.05639318,124.59,124.54,3.25067193]
[1766435038217,0.05639318,124.59,124.54,0.06067193]
[1766435038717,7.28419318,124.59,124.54,0.06067193]
[1766435040018,7.2281,124.58,124.54,0.06067193]
[1766435040916,0.05639318,124.59,124.54,0.06067193]
[1766435040917,7.28369318,124.59,124.54,0.06067193]
[1766435042016,7.28299318,124.59,124.54,3.25067193]
[1766435043326,0.05639318,124.59,124.54,3.25067193]
[1766435046115,2.47444328,124.65,124.56,3.47]
[1766435046316,2.47444328,124.65,124.58,3.47]
[1766435046915,0.05976694,124.63,124.6,0.05375375]
[1766435048420,0.05976694,124.63,124.6,0.00375375]
[1766435049431,9.70014328,124.62,124.56,3.47]
[1766435049625,2.47444328,124.6,124.54,105.4997]
[1766435050321,2.47444328,124.6,124.56,0.05740582]
[1766435050322,0.06113237,124.58,124.56,0.05740582]
[1766435051721,0.06113237,124.58,124.51,10.7014]
[1766435051722,2.53557565,124.58,124.51,3.47]
[1766435051921,2.47444328,124.56,124.51,3.47]
[1766435052223,2.47444328,124.57,124.51,3.47]
[1766435052620,0.06098726,124.55,124.53,0.05116202]
[1766435058628,7.2273,124.59,124.53,3.52116202]
[1766435058842,7.2273,124.59,124.53,3.47]
[1766435059728,0.05722283,124.57,124.55,0.05937229]
[1766435061236,207.2338,124.63,124.55,0.05937229]
[1766435061428,7.2265,124.61,124.55,3.47]
[1766435061931,2.47444328,124.62,124.55,3.47]
[1766435062233,0.05203333,124.6,124.57,0.05222779]
[1766435063636,7.27873333,124.6,124.57,0.05222779]
[1766435065930,2.52647661,124.6,124.57,0.05222779]
[1766435066140,2.52647661,124.6,124.53,3.47]
[1766435066738,7.2279,124.58,124.53,3.47]
[1766435067034,0.0544709,124.57,124.54,0.06060372]
[1766435068638,2.47444328,124.56,124.5,3.47]
[1766435069531,7.23,124.55,124.5,3.47]
[1766435069735,0.05694442,124.54,124.51,0.06082643]
[1766435069930,94.84,124.58,124.51,3.41082643]
[1766435070135,2.47444328,124.59,124.51,3.41082643]
[1766435070337,2.47444328,124.59,124.51,3.35]
[1766435071040,0.06102846,124.56,124.54,0.05384409]